Cogmind - Beta 16 @@@ ROGUE MODE // 2025.11.26 @ 22:25:46 Player: tthaar Result: Destroyed by Y-72 Warden with Railgun Performance ------------- Evolutions (9) 4500 Regions Visited (16) 3200 Robots Destroyed (97) 485 Value Destroyed (2815) 2815 Prototype IDs (46) 920 Alien Tech Used (0) 0 Bonus (600) 600 TOTAL SCORE: 12520 Bonus ------- Follower Combat Kills 300 Aligned with FarCom 300 Cogmind --------- Core Integrity 0/1600 Matter 174/300 Energy 100/100 System Corruption 3% Temperature Cool (9) Movement Core (50) Location -1/Access Parts ------- > --- POWER (2) -------- (None) > --- PROPULSION (8) --- (None) > --- UTILITY (12) ----- (None) > --- WEAPON (3) ------- (None) > --- INVENTORY (5) ---- Improved Gyrokinetic Inverter Cloaking Device Heavy Shock Bomb Launcher Peak State ------------ > --- POWER ------------ Light Particle Reactor > --- PROPULSION ------- Cesium-ion Thruster Cesium-ion Thruster Improved VTOL Module Nuclear Pulse Thruster Biomechanical Wings Cooled Field Propulsion Drive > --- UTILITY ---------- Advanced Heat Sink Improved Trap Scanner Experimental Signal Interpreter Transmission Jammer Advanced Reaction Control System Utility Shielding Graphene Brace Hacking Suite Hacking Suite Improved System Shield Advanced System Restoration Module > --- WEAPON ----------- Power Maul Nanosword > --- INVENTORY -------- Improved Fusion Compressor Improved Fusion Compressor Cloaking Device Quantum Rifle Compact HERF Cannon [Rating: 107] Favorites ----------- Power Heavy Ion Engine Engine Heavy Ion Engine Power Core Light Nuclear Core Reactor Light Particle Reactor Propulsion Light Treads Treads Light Treads Leg Aluminum Leg Wheel Wheel Hover Unit Improved Gyrokinetic Inverter Flight Unit Cesium-ion Thruster Utility Hacking Suite Device Transmission Jammer Storage Large Storage Unit Processor Signal Interpreter Hackware Hacking Suite Protection Utility Shielding Weapon Light Cannon Energy Gun Particle Gun Energy Cannon Compact HERF Cannon Ballistic Gun Assault Rifle Ballistic Cannon Light Cannon Launcher Rocket Launcher Special Weapon Mining Laser Impact Weapon Power Maul Slashing Weapon Katana Build | -11 -10 -10 -10 -9 -8 -7 -6 -6 -6 -5 -4 -4 -4 -3 -2 -1 ------- Run | Yrd Mat Min Exi Min Mat Fac Fac Was Fac Fac Fac Upp Upp Res Res Acc Slots Evolved 18 | . . . . . 4 2 2 . . 2 2 . . 2 2 2 Power 1 | . . . . . . . 1 . . . . . . . . . Propulsion 6 | . . . . . 1 1 . . . 1 1 . . 1 1 . Utility 10 | . . . . . 3 1 1 . . 1 1 . . 1 1 1 Weapon 1 | . . . . . . . . . . . . . . . . 1 Parts Attached 97 | 7 10 3 . 5 27 4 4 1 6 5 8 1 1 6 4 5 Power 14 | 1 1 . . . 4 1 . . 1 2 2 . 1 1 . . Engine 7 | 1 1 . . . 3 . . . . 1 . . 1 . . . Core 6 | . . . . . 1 1 . . 1 1 2 . . . . . Reactor 1 | . . . . . . . . . . . . . . 1 . . Propulsion 27 | 2 3 . . 2 9 . 1 1 1 1 3 1 . . 2 1 Treads 7 | . 2 . . 2 3 . . . . . . . . . . . Leg 3 | 2 1 . . . . . . . . . . . . . . . Wheel 3 | . . . . . 3 . . . . . . . . . . . Hover 1 | . . . . . . . . . . . . . . . . 1 Flight 13 | . . . . . 3 . 1 1 1 1 3 1 . . 2 . Utility 30 | 2 1 1 . . 7 2 3 . 2 1 3 . . 4 2 2 Device 11 | 1 . . . . 2 1 . . 2 . . . . 3 2 . Storage 3 | 1 1 . . . . . . . . . . . . . . 1 Processor 4 | . . 1 . . 1 . . . . . 1 . . 1 . . Hackware 4 | . . . . . . 1 2 . . 1 . . . . . . Protection 8 | . . . . . 4 . 1 . . . 2 . . . . 1 Artifact . | . . . . . . . . . . . . . . . . . Weapon 26 | 2 5 2 . 3 7 1 . . 2 1 . . . 1 . 2 Energy Gun 5 | . 2 . . 1 1 . . . . . . . . . . 1 Energy Cannon 1 | . . . . . . . . . . . . . . . . 1 Ballistic Gun 8 | 2 . . . 1 4 1 . . . . . . . . . . Ballistic Cannon 3 | . 1 . . . 1 . . . . 1 . . . . . . Launcher 5 | . 1 2 . . 1 . . . 1 . . . . . . . Special Weapon 1 | . 1 . . . . . . . . . . . . . . . Impact Weapon 1 | . . . . . . . . . 1 . . . . . . . Slashing Weapon 2 | . . . . 1 . . . . . . . . . 1 . . Piercing Weapon . | . . . . . . . . . . . . . . . . . Special Melee Weapon . | . . . . . . . . . . . . . . . . . Unidentified Prototypes 11 | . 1 . . . 3 . 1 . 1 2 . . . 2 1 . Corrupted Parts 2 | . . . . . 2 . . . . . . . . . . . System Corruption 11 | . . . . . 11 . . . . . . . . . . . Parts Lost 38 | . . . . 2 14 1 . . . . 5 3 . 4 5 4 Power 9 | . . . . 1 2 . . . . . 3 . . 1 1 1 Propulsion 14 | . . . . . 6 1 . . . . 1 1 . 1 3 1 Utility 7 | . . . . . 2 . . . . . . 2 . 1 1 1 Weapon 8 | . . . . 1 4 . . . . . 1 . . 1 . 1 Highest Loss Streak 6 | . . . . 2 6 1 . . . . 3 3 . 3 5 4 To Critical Strikes 1 | . . . . . 1 . . . . . . . . . . . Average Backups 9 | 3 10 14 14 14 11 4 5 5 5 4 4 3 3 2 4 4 Power 1 | . 1 1 1 1 1 1 1 1 1 1 1 1 1 1 1 . Propulsion 1 | 1 2 2 2 2 . . . . . 1 . . . . . . Utility 4 | . 3 6 7 8 5 1 1 1 1 1 . 2 2 . . 1 Weapon 3 | . 4 4 4 3 4 2 3 3 2 1 1 . . . 2 1 Tool/Special . | . . . . . . . . . . . . . . . . . Unused Backups 14 | . 1 1 1 1 6 . . . 2 . 1 . . . . 1 Power 2 | . 1 . . . 1 . . . . . . . . . . . Propulsion . | . . . . . . . . . . . . . . . . . Utility 7 | . . . 1 1 5 . . . . . . . . . . . Weapon 5 | . . 1 . . . . . . 2 . 1 . . . . 1 Tool/Special . | . . . . . . . . . . . . . . . . . Average Slot Usage (%) 93 | . 99 100 100 98 94 90 83 95 99 95 98 86 86 85 58 7 Engine 8 | . 14 14 14 12 7 . . 4 6 5 1 . 2 2 . . Core 2 | . . . . . . 7 6 6 6 5 7 5 5 2 . . Treads 15 | . 19 28 28 28 18 . . . . . . . . . . . Flight 9 | . . . . . 2 21 19 23 25 24 30 30 31 25 16 3 Device 7 | . 14 12 . . 6 14 13 13 13 10 9 10 10 20 15 . Storage 7 | . 14 14 14 14 8 . . . . . . . . . . . Processor 8 | . . 1 14 14 17 15 11 6 6 5 4 . . 1 2 . Hackware 6 | . . . . . . 6 13 20 20 23 21 21 21 16 9 . Protection 4 | . . . . . 11 7 6 6 6 5 10 9 5 4 2 1 Energy Gun 6 | . 5 7 14 11 7 1 3 3 . . . . . . . 3 Ballistic Gun 2 | . 9 . . 1 4 7 6 6 1 . . . . . . . Ballistic Cannon 5 | . 6 4 14 12 . . . . . 1 5 5 5 1 . . Launcher 2 | . . 9 . 2 2 . . . 5 3 1 . . . . . Special Weapon 1 | . 6 6 . . . . . . . . . . . . . . Impact Weapon 1 | . . . . . . . . . 1 4 3 5 5 3 2 . Peak Build Rating 107 | 7 11 13 12 14 34 36 46 53 56 70 86 78 71 96 107 37 Average Rating 32 | 5 9 11 12 12 24 32 42 50 53 62 78 71 70 84 71 16 On Entrance 38 | . 7 10 13 12 11 32 30 46 53 56 66 78 70 71 91 11 Avg Prop Armor Cover (%) 2 | . . . . . . . . . . . 2 2 3 2 3 . Naked Turns 96 | . . . . . . . . . . . . . . . 31 65 Heaviest Build 45 | 15 35 36 35 35 45 25 18 20 21 24 31 28 26 28 32 16 Greatest Support 60 | 20 40 40 40 40 60 18 18 24 24 30 37 31 29 29 36 12 Greatest Overweight (x) 11 | . . . . . 11 1 1 1 1 . 1 1 . . 1 1 Average Overweight (x) . | . . . . . . . . . . . . . . . . . Largest Inventory Capacity 15 | 8 15 15 15 15 15 5 5 5 5 5 5 5 5 5 5 10 Average Capacity 10 | 7 12 15 15 15 14 5 5 5 5 5 5 5 5 5 5 5 Most Carried 15 | 5 14 15 15 15 15 5 5 5 5 5 5 3 3 4 5 5 Average Carried 10 | 3 10 14 14 14 11 4 5 4 4 4 4 3 3 2 4 4 Final Capacity 15 | 8 15 15 15 15 5 5 5 5 5 5 5 5 5 5 5 5 Final Carried 15 | 5 14 15 15 15 5 5 5 5 5 5 3 3 3 4 5 3 Class Distribution -------------------- 55% | Mutant 17% | Hacker-Ninja 6% | Hacker-Sprinter 5% | Hacker-Scout 3% | Scavenger-Skirmisher Dominant Class ---------------- Mutant | -10/Materials Mutant | -10/Mines Mutant | -10/Exiles Mutant | -9/Mines Scavenger-Skirmisher | -8/Materials Ninja | -7/Factory Hacker-Ninja | -6/Factory Hacker-Scout | -6/Waste Hacker-Ninja | -6/Factory Hacker-Ninja | -5/Factory Hacker-Ninja | -4/Factory Hacker-Sprinter | -4/Upper Caves Hacker-Sprinter | -4/Upper Caves Hacker-Sprinter | -3/Research Hacker-Sprinter | -2/Research Mutant | -1/Access Resources | -11 -10 -10 -10 -9 -8 -7 -6 -6 -6 -5 -4 -4 -4 -3 -2 -1 ----------- Run | Yrd Mat Min Exi Min Mat Fac Fac Was Fac Fac Fac Upp Upp Res Res Acc Matter Collected 3355 | 222 201 155 90 310 802 98 127 118 111 107 460 258 24 258 . 14 Remotely . | . . . . . . . . . . . . . . . . . Salvage Created 3076 | 38 242 48 . 192 785 129 53 . 181 155 833 118 44 244 . 14 Parts 172 | 5 22 8 . 15 55 8 2 . 8 8 28 2 1 7 . 3 Haulers Intercepted 6 | . 2 . . . 1 . . . 1 1 1 . . . . . Recyclers Shooed 2 | . 1 . . . . . 1 . . . . . . . . . Parts Field Recycled . | . . . . . . . . . . . . . . . . . Retrieved Matter . | . . . . . . . . . . . . . . . . . Parts Self-Destructed 1 | . . . . . . . . . . . . 1 . . . . Prevented 1 | . . . . . . . . . . . . 1 . . . . Parts Restored . | . . . . . . . . . . . . . . . . . Kills | -11 -10 -10 -10 -9 -8 -7 -6 -6 -6 -5 -4 -4 -4 -3 -2 -1 ------- Run | Yrd Mat Min Exi Min Mat Fac Fac Was Fac Fac Fac Upp Upp Res Res Acc Combat Hostiles Destroyed 66 | . 8 5 . 6 21 2 . . 5 6 9 2 . 2 . . Melee 4 | . . . . . 1 1 . . . . . 1 . 1 . . Guns 14 | . 2 . . 2 9 . . . 1 . . . . . . . Cannons 8 | . . 1 . . 3 . . . . . 4 . . . . . AOE 36 | . 6 4 . 4 8 . . . 4 6 4 . . . . . Classes Destroyed 15 | 1 4 . . 4 2 1 1 . . 1 1 . . . . . Worker 4 | . . . . 1 . 1 . . . . 1 . . . . 1 Builder 9 | . 1 . . . 5 . . . . . 3 . . . . . Tunneler 3 | 2 . . . 1 . . . . . . . . . . . . Hauler 6 | . 2 . . . 1 . . . 1 1 1 . . . . . Recycler 5 | . . . . 1 . . . . . . 3 . . 1 . . Mechanic 1 | . . . . . . . . . . . 1 . . . . . Operator 1 | . . . . . . . . . . 1 . . . . . . Watcher 2 | . . . . . . . 2 . . . . . . . . . Swarmer 32 | . 6 4 . 3 6 . . . 4 5 4 . . . . . Grunt 9 | . 2 1 . . 5 . . . 1 . . . . . . . Sentry 12 | . . . . 2 5 1 . . . 1 1 . . 2 . . Demolisher 1 | . . . . 1 . . . . . . . . . . . . Specialist 2 | . . . . . 2 . . . . . . . . . . . Hunter 5 | . . . . . 3 . . . . . . 2 . . . . Programmer 5 | . . . . . . 1 . . . . 4 . . . . . Decomposer 3 | . . . . . . . . . . . . . 3 . . . Best Kill Streak 10 | 1 5 3 . 3 10 2 1 . 5 6 10 2 . 1 . 1 Combat Bots Only 6 | . 5 3 . 3 6 1 . . 5 5 6 2 . 1 . . Max Kills in Single Turn 6 | 1 4 3 . 2 5 1 1 . 3 6 3 1 1 1 . 1 Gunslinging . | . . . . . . . . . . . . . . . . . Exploded 5 | . 3 3 . 2 3 . . . 3 5 2 . . . . . Melee 1 | . . . . . 1 1 . . . . . 1 . 1 . . Uniques/NPCs Destroyed . | . . . . . . . . . . . . . . . . . Combat | -11 -10 -10 -10 -9 -8 -7 -6 -6 -6 -5 -4 -4 -4 -3 -2 -1 -------- Run | Yrd Mat Min Exi Min Mat Fac Fac Was Fac Fac Fac Upp Upp Res Res Acc Hostile Shots Fired 706 | . 14 20 . 54 228 47 . . 4 5 51 40 . 22 72 149 Missed 272 | . 7 5 . 10 74 20 . . . 1 22 19 . 11 37 66 Hits 434 | . 7 15 . 44 154 27 . . 4 4 29 21 . 11 35 83 Melee 2 | . . . . . 2 . . . . . . . . . . . Projectile 432 | . 7 15 . 44 152 27 . . 4 4 29 21 . 11 35 83 AOE 1 | . . . . 1 . . . . . . . . . . . . Critical Strikes 12 | . . . . 1 5 . . . . . 1 1 . . 4 . Actively Blocked 4 | . . . . . . . . . . . 1 1 . . 2 . Damage Taken 7227 | . 72 165 . 566 1989 207 . 70 92 88 603 352 . 280 826 1917 Core 2952 | . 12 35 . 91 338 30 . 46 12 . 37 43 . 79 617 1612 Absorbed by Shields . | . . . . . . . . . . . . . . . . . Redirected to Shielding 265 | . . . . . 20 1 . . 8 . 44 76 . 9 7 100 Ignored by Resistances 52 | . . . . . 30 22 . . . . . . . . . . Regen/Repaired (Parts) 78 | . . . . . . . . 52 13 13 . . . . . . Core Remaining (%) 79 | 100 . . . 44 38 95 . . 93 100 . . 93 93 57 . Volleys Fired 174 | 2 36 6 . 15 56 7 15 4 5 3 16 4 . 4 . 1 Largest 2 | 2 2 2 . 2 2 2 2 2 1 2 2 1 . 1 . 1 Hottest 100 | 40 100 95 . 95 98 79 84 84 33 66 66 33 . 33 . 94 Shots Fired 271 | 4 52 9 . 28 94 15 22 8 5 5 19 5 . 4 . 1 Gun 168 | 4 29 3 . 17 67 15 22 8 2 . . . . . . 1 Cannon 51 | . 3 3 . 7 15 . . . . 2 12 5 . 4 . . Launcher 34 | . 2 3 . 4 12 . . . 3 3 7 . . . . . Special 18 | . 18 . . . . . . . . . . . . . . . Kinetic 133 | 4 20 3 . 13 41 8 15 4 2 2 12 5 . 4 . . Thermal 99 | . 25 3 . 11 41 7 7 4 . . . . . . . 1 Explosive 32 | . 2 3 . 4 10 . . . 3 3 7 . . . . . Electromagnetic 7 | . 5 . . . 2 . . . . . . . . . . . Robot Hit Streak 16 | 1 6 8 . 5 6 13 16 6 1 2 5 2 . 3 . 3 Robot Miss Streak 5 | 1 4 1 . 3 5 1 2 2 1 1 2 2 . 1 . . Penetration Max . | . . . . . . . . . . . . . . . . . Secondary Targets 2 | . 1 . . 1 . . . . . . . . . . . . Max Gunslinging Chain 1 | . 1 . . 1 . . . . . . . . . . . . Shots Hit Robots 212 | 2 23 7 . 19 61 15 18 6 5 4 29 5 3 14 . 1 Core Hits 143 | 2 17 5 . 10 57 5 4 . 8 12 16 2 1 3 . 1 Critical Kills 1 | . . . . . . . . . . . 1 . . . . . Critical Parts Destroyed 9 | . . . . . 1 . . . . 1 4 1 . 2 . . Critical Strikes 26 | . 1 1 . . 7 2 . 1 2 1 8 1 . 2 . . Burn 8 | . . . . . 5 2 . 1 . . . . . . . . Destroy 1 | . . . . . 1 . . . . . . . . . . . Blast 5 | . 1 1 . . . . . . . . 3 . . . . . Smash 9 | . . . . . . . . . . 1 5 1 . 2 . . Sever 3 | . . . . . 1 . . . 2 . . . . . . . Melee Attacks 95 | . . . . 2 14 3 4 . 17 11 22 4 3 12 3 . Impact 48 | . . . . . . . . . 1 11 22 4 3 7 . . Slashing 47 | . . . . 2 14 3 4 . 16 . . . . 5 3 . Piercing . | . . . . . . . . . . . . . . . . . Sneak Attacks 19 | . . . . 1 . 1 1 . 2 1 7 . 3 3 . . Combat Hostiles 2 | . . . . . . . . . . . . . . 2 . . Follow-up Attacks 2 | . . . . . . . . . . . . . . 2 . . Damage Inflicted 9140 | 26 622 263 . 644 2072 279 366 109 593 992 1877 227 282 759 . 29 Guns 1992 | 26 269 29 . 205 822 192 272 109 39 . . . . . . 29 Cannons 858 | . 39 51 . 51 191 . . . . 80 299 48 . 99 . . Explosions 3400 | . 302 163 . 270 1005 . . . 355 825 480 . . . . . Melee 2831 | . . . . 92 53 87 94 . 199 87 1098 179 282 660 . . Ramming 59 | . 12 20 . 26 1 . . . . . . . . . . . Kinetic 1675 | 26 180 51 . 103 410 104 170 66 39 80 299 48 . 99 . . Thermal 1722 | . 61 29 . 153 633 88 102 43 . 584 . . . . . 29 Explosive 2453 | . 302 163 . 270 642 . . . 355 241 480 . . . . . Electromagnetic 400 | . 67 . . . 333 . . . . . . . . . . . Impact 1908 | . . . . . . . . . . 87 1098 179 282 262 . . Slashing 923 | . . . . 92 53 87 94 . 199 . . . . 398 . . Piercing . | . . . . . . . . . . . . . . . . . Highest Corruption 12 | . . . . . 12 1 . . . . 2 2 2 . 3 3 Average Corruption 3 | . . . . . 7 1 . . . . 1 2 2 . 2 2 Corruption Purged 1 | . . . . . . . . . . . . . . . 1 . Corruption Blocked . | . . . . . . . . . . . . . . . . . Effects 34 | . . . . . 19 2 . . . . 9 1 2 . 1 . Message Errors 9 | . . . . . 7 . . . . . 2 . . . . . Matter Fused 6 | . . . . . 5 . . . . . 1 . . . . . Heat Flow Errors 1 | . . . . . . . . . . . 1 . . . . . Energy Discharges 5 | . . . . . 1 1 . . . . 1 . 1 . 1 . Parts Rejected 1 | . . . . . 1 . . . . . . . . . . . Data Loss (minor) 7 | . . . . . 4 . . . . . 3 . . . . . Data Loss (major) 2 | . . . . . . . . . . . 1 . 1 . . . Misfires 2 | . . . . . . 1 . . . . . 1 . . . . Alerts 1 | . . . . . 1 . . . . . . . . . . . Overload Shots . | . . . . . . . . . . . . . . . . . Overflow Damage 1465 | . . . . 35 11 . 34 . 35 301 631 70 151 197 . . Projectiles . | . . . . . . . . . . . . . . . . . Explosions 354 | . . . . 13 11 . . . 35 214 81 . . . . . Melee 1111 | . . . . 22 . . 34 . . 87 550 70 151 197 . . Knockbacks 15 | . . . . 2 3 . . . . 1 7 2 . . . . Impact 9 | . . . . 1 . . . . . 1 5 2 . . . . Kinetic 6 | . . . . 1 3 . . . . . 2 . . . . . Secondary . | . . . . . . . . . . . . . . . . . Self-Inflicted Damage 180 | . . . . 23 134 . . . . . 23 . . . . . Shots 11 | . . . . 1 8 . . . . . 2 . . . . . Rammed 5 | . 1 2 . 1 1 . . . . . . . . . . . Targets Rammed 7 | . 2 2 . 2 1 . . . . . . . . . . . Kicked 1 | . 1 . . . . . . . . . . . . . . . Crushed 1 | . . . . 1 . . . . . . . . . . . . Highest Temperature 441 | . 120 108 . 287 441 210 . 36 . 15 190 28 105 . . . Average Temperature 58 | . 35 54 . 106 101 98 . 18 . 13 42 11 51 . . . Received Heat Transfer 792 | . 27 63 . 108 333 72 . . 9 18 36 . . 36 18 72 Effects 3 | . . . . . 2 1 . . . . . . . . . . Shutdowns 1 | . . . . . 1 . . . . . . . . . . . Energy Bleed 1 | . . . . . . 1 . . . . . . . . . . Matter Decay 1 | . . . . . 1 . . . . . . . . . . . Siege Activations . | . . . . . . . . . . . . . . . . . Martial Activations . | . . . . . . . . . . . . . . . . . Shielding Activations . | . . . . . . . . . . . . . . . . . Robots Disrupted . | . . . . . . . . . . . . . . . . . Combat Hostiles . | . . . . . . . . . . . . . . . . . Robots Corrupted 8 | . . . . . . . . . . 1 5 1 . 1 . . Combat Hostiles 3 | . . . . . . . . . . . 1 1 . 1 . . Parts Fried 17 | . . . . . 2 . . . . 1 9 3 2 . . . Impact Corruptions 25 | . . . . . . . . . . 3 13 1 6 2 . . Robots Melted 1 | . . . . . . 1 . . . . . . . . . . Combat Hostiles 1 | . . . . . . 1 . . . . . . . . . . Parts Melted 7 | . . . . 1 3 3 . . . . . . . . . . Heat Transferred 3360 | . 148 74 . 370 1567 370 259 185 . 350 . . . . . 37 Parts Sabotaged . | . . . . . . . . . . . . . . . . . Parts Stolen . | . . . . . . . . . . . . . . . . . Parts Stripped . | . . . . . . . . . . . . . . . . . Power Chain Reactions 1 | . . . . . 1 . . . . . . . . . . . Alert | -11 -10 -10 -10 -9 -8 -7 -6 -6 -6 -5 -4 -4 -4 -3 -2 -1 ------- Run | Yrd Mat Min Exi Min Mat Fac Fac Was Fac Fac Fac Upp Upp Res Res Acc Maximum Alert Level 1 | . . . . . 1 . . . 1 1 1 . . . . 1 Low Security (%) 90 | 100 100 100 . 100 69 100 100 100 33 98 97 . . 100 100 93 Level 1 9 | . . . . . 30 . . . 66 1 2 . . . . 6 Level 2 . | . . . . . . . . . . . . . . . . . Level 3 . | . . . . . . . . . . . . . . . . . Level 4 . | . . . . . . . . . . . . . . . . . Level 5 . | . . . . . . . . . . . . . . . . . High Security . | . . . . . . . . . . . . . . . . . Max Security . | . . . . . . . . . . . . . . . . . Peak Influence 365 | 5 129 76 . 85 329 160 64 29 365 350 330 . . 90 24 274 Initial 144 | . . . . . 10 144 64 . 10 129 81 . . 62 24 8 Average 51 | . 25 8 . 7 94 127 23 10 221 86 38 . . 60 6 35 Influence Increases 3869 | 10 281 130 . 189 630 108 31 65 812 448 550 80 . 113 48 374 Destroy 0b10 Robot/C 1540 | . 160 100 . 120 420 40 . . 320 120 180 40 . 40 . . Destroy 0b10 Robot/NC 185 | 10 15 . . 15 30 5 10 . 35 10 45 . . 5 . 5 Destroy Leader 360 | . 34 10 . 10 122 20 4 . 66 22 42 10 . 20 . . Allied During Kill 244 | . . . . . . . . . 238 6 . . . . . . Successful Hack 158 | . 22 . . . 4 43 15 . 17 31 . . . 14 3 9 Disable Machine 195 | . 30 . . . . . . . 45 105 15 . . . . . Destroy Structure 512 | . 20 20 . 29 54 . 2 65 76 154 88 . . 4 . . Partial Spotted 60 | . . . . . . . . . 15 . . . . 30 . 15 Lose Combat Pursuer 615 | . . . . 15 . . . . . . 180 30 . . 45 345 Influence Decreases 3595 | 10 281 130 . 162 340 293 163 50 562 547 390 241 72 161 78 115 Entered New Map 696 | . . . . . 17 173 68 . 5 136 85 121 32 31 21 7 Time Decay 1987 | 10 281 130 . 152 183 110 45 50 227 178 271 90 40 90 57 73 Lost Part 299 | . . . . 10 140 10 . . . . 34 30 . 40 . 35 Lost Ally 200 | . . . . . . . . . 180 20 . . . . . . Purge Threat 413 | . . . . . . . 50 . 150 213 . . . . . . Squads Dispatched 20 | . 1 1 . . 7 . . . 2 1 5 . . . 1 2 Investigation 6 | . 1 1 . . 2 . . . 1 . . . . . . 1 Extermination 7 | . . . . . . . . . 1 1 3 . . . 1 1 Reinforcement 7 | . . . . . 5 . . . . . 2 . . . . . Assault . | . . . . . . . . . . . . . . . . . Garrison . | . . . . . . . . . . . . . . . . . Intercept . | . . . . . . . . . . . . . . . . . Searches Triggered . | . . . . . . . . . . . . . . . . . Construction Impeded 2 | . . . . . 1 . . . . . 1 . . . . . Haulers Reinforced . | . . . . . . . . . . . . . . . . . Active Scanning Responses . | . . . . . . . . . . . . . . . . . Cargo Convoy Interrupts . | . . . . . . . . . . . . . . . . . Stealth | -11 -10 -10 -10 -9 -8 -7 -6 -6 -6 -5 -4 -4 -4 -3 -2 -1 --------- Run | Yrd Mat Min Exi Min Mat Fac Fac Was Fac Fac Fac Upp Upp Res Res Acc Distress Signals 9 | . 1 . . . 3 . . . 3 . 2 . . . . . Communications Jammed 2 | . . . . . . . . . 2 . . . . . . . Distress Signals 2 | . . . . . . . . . 2 . . . . . . . Times Spotted 158 | . 19 7 . 8 33 3 4 6 13 4 16 5 . 4 7 29 Peak Tracking Total 24 | . 5 3 . 3 9 3 2 3 6 5 8 3 . 4 6 24 Tactical Retreats 20 | . . . . 1 . 1 . . 1 . 5 2 . . 3 7 ECM-based Alert Blocks 2 | . . . . . . 1 . . 1 . . . . . . . Traps | -11 -10 -10 -10 -9 -8 -7 -6 -6 -6 -5 -4 -4 -4 -3 -2 -1 ------- Run | Yrd Mat Min Exi Min Mat Fac Fac Was Fac Fac Fac Upp Upp Res Res Acc Traps Triggered 7 | . 1 . . . 1 1 1 . 1 . 1 . . . 1 . Indirectly . | . . . . . . . . . . . . . . . . . Trap Hack Attempts . | . . . . . . . . . . . . . . . . . Triggered . | . . . . . . . . . . . . . . . . . Disarmed . | . . . . . . . . . . . . . . . . . Reprogrammed . | . . . . . . . . . . . . . . . . . Reused . | . . . . . . . . . . . . . . . . . Traps Extracted . | . . . . . . . . . . . . . . . . . Installed . | . . . . . . . . . . . . . . . . . Triggered . | . . . . . . . . . . . . . . . . . Machines | -11 -10 -10 -10 -9 -8 -7 -6 -6 -6 -5 -4 -4 -4 -3 -2 -1 ---------- Run | Yrd Mat Min Exi Min Mat Fac Fac Was Fac Fac Fac Upp Upp Res Res Acc Machines Disabled 14 | . 2 . . 1 . . . . 3 7 1 . . . . . Max in Single Turn 7 | . 1 . . 1 . . . . 1 7 1 . . . . . Garrison Access 2 | . . . . . . 1 . . 1 . . . . . . . Machines Repaired . | . . . . . . . . . . . . . . . . . Machines Dismantled . | . . . . . . . . . . . . . . . . . Machines Sabotaged . | . . . . . . . . . . . . . . . . . Overloaded Fab Kills . | . . . . . . . . . . . . . . . . . Hacking | -11 -10 -10 -10 -9 -8 -7 -6 -6 -6 -5 -4 -4 -4 -3 -2 -1 --------- Run | Yrd Mat Min Exi Min Mat Fac Fac Was Fac Fac Fac Upp Upp Res Res Acc Machines Accessed 46 | . 5 1 5 . 4 5 1 . 9 6 4 . 1 1 3 1 Terminals 31 | . 5 . . . 4 3 1 . 6 4 3 . 1 1 2 1 Fabricators 2 | . . . . . . . . . 1 1 . . . . . . Repair Stations 2 | . . . . . . . . . 1 1 . . . . . . Recycling Units 1 | . . . . . . . . . . . . . . . 1 . Scanalyzers 2 | . . . . . . 1 . . . . 1 . . . . . Garrison Access 2 | . . . . . . 1 . . 1 . . . . . . . Total Hacks 175 | . 14 1 50 . 12 10 6 . 31 26 12 . 1 3 6 3 Successful 115 | . 4 1 50 . 5 8 5 . 17 12 5 . 1 3 3 1 Failed 57 | . 9 . . . 7 2 1 . 13 14 6 . . . 3 2 Catastrophic 8 | . 2 . . . 2 . . . 3 . . . . . . 1 Database Lockouts 3 | . 1 . . . . . . . 1 . 1 . . . . . Manual 38 | . 11 . 1 . 4 . 6 . 7 7 . . . . 1 1 Terminals 105 | . 14 . . . 12 6 6 . 27 21 8 . 1 3 4 3 Fabricators 2 | . . . . . . . . . 1 1 . . . . . . Repair Stations 6 | . . . . . . . . . 2 4 . . . . . . Recycling Units 2 | . . . . . . . . . . . . . . . 2 . Scanalyzers 7 | . . . . . . 3 . . . . 4 . . . . . Garrison Access 2 | . . . . . . 1 . . 1 . . . . . . . Terminal Hacks 101 | . 4 1 50 . 5 4 5 . 14 9 2 . 1 3 2 1 Record 60 | . . . 49 . . . . . 5 . 1 . 1 2 1 1 Robot Analysis 2 | . . . . . 1 . 1 . . . . . . . . . Prototype ID Bank 8 | . 3 . . . 2 . 1 . 1 1 . . . . . . Open Door 1 | . . 1 . . . . . . . . . . . . . . Open DSF 3 | . . . . . . . . . 2 . 1 . . . . . Level Access Points 5 | . . . . . . 1 1 . 1 1 . . . . 1 . Emergency Access Points 2 | . . . . . . . . . 1 1 . . . . . . Alert Level 2 | . . . . . . . . . . 2 . . . . . . Unreport Threat 4 | . . . . . . . 1 . 1 2 . . . . . . Maintenance Status 4 | . . . . . 1 1 1 . . 1 . . . . . . Extermination Status 1 | . . . . . . . . . 1 . . . . . . . Hauler Manifests 3 | . 1 . . . 1 . . . 1 . . . . . . . Registered Components 2 | . . . . . . 1 . . . . . . . 1 . . Registered Prototypes 1 | . . . . . . . . . . 1 . . . . . . Zone Layout 2 | . . . . . . 1 . . 1 . . . . . . . Proto ID Catalog 1 | . . . 1 . . . . . . . . . . . . . Fabricator Hacks 1 | . . . . . . . . . . 1 . . . . . . Build 1 | . . . . . . . . . . 1 . . . . . . Repair Station Hacks 4 | . . . . . . . . . 2 2 . . . . . . Scan Component 2 | . . . . . . . . . 1 1 . . . . . . Repair 2 | . . . . . . . . . 1 1 . . . . . . Recycling Unit Hacks 1 | . . . . . . . . . . . . . . . 1 . Retrieve Matter 1 | . . . . . . . . . . . . . . . 1 . Scanalyzer 6 | . . . . . . 3 . . . . 3 . . . . . Retrieve Study 6 | . . . . . . 3 . . . . 3 . . . . . Garrison Access Hacks 2 | . . . . . . 1 . . 1 . . . . . . . Seal Access 2 | . . . . . . 1 . . 1 . . . . . . . Unauthorized Hacks . | . . . . . . . . . . . . . . . . . Terminals . | . . . . . . . . . . . . . . . . . Fabricators . | . . . . . . . . . . . . . . . . . Repair Stations . | . . . . . . . . . . . . . . . . . Recycling Units . | . . . . . . . . . . . . . . . . . Scanalyzers . | . . . . . . . . . . . . . . . . . Garrison Access . | . . . . . . . . . . . . . . . . . Data Cores Recovered 1 | . . . . . . . . . . 1 . . . . . . Used 1 | . . . . . . . . . . 1 . . . . . . Hacking Detections 33 | . 6 . . . 4 4 1 . 6 5 2 . . 1 3 1 Full Trace Events 3 | . 1 . . . 1 . . . . . . . . . . 1 Feedback Events 1 | . . . . . 1 . . . . . . . . . . . Corruption 1 | . . . . . 1 . . . . . . . . . . . Feedback Blocked . | . . . . . . . . . . . . . . . . . Robot Schematics Acquired . | . . . . . . . . . . . . . . . . . Robots Built 2 | . . . . . . . . . . 2 . . . . . . Authchips . | . . . . . . . . . . . . . . . . . Time 76 | . . . . . . . . . . 76 . . . . . . Total Robot Build Rating 10 | . . . . . . . . . . 10 . . . . . . Part Schematics Acquired . | . . . . . . . . . . . . . . . . . Parts Built . | . . . . . . . . . . . . . . . . . Authchips . | . . . . . . . . . . . . . . . . . Time . | . . . . . . . . . . . . . . . . . Total Part Build Rating . | . . . . . . . . . . . . . . . . . Part Studies Acquired 6 | . . . . . . 3 . . . . 3 . . . . . Parts Repaired 2 | . . . . . . . . . 1 1 . . . . . . Time 57 | . . . . . . . . . 38 19 . . . . . . Parts Recycled . | . . . . . . . . . . . . . . . . . Recycled Matter . | . . . . . . . . . . . . . . . . . Retrieved Matter . | . . . . . . . . . . . . . . . . . Retrieved Components . | . . . . . . . . . . . . . . . . . Parts Scanalyzed . | . . . . . . . . . . . . . . . . . Part Schematics Acquired . | . . . . . . . . . . . . . . . . . Parts Damaged . | . . . . . . . . . . . . . . . . . Bothacking | -11 -10 -10 -10 -9 -8 -7 -6 -6 -6 -5 -4 -4 -4 -3 -2 -1 ------------ Run | Yrd Mat Min Exi Min Mat Fac Fac Was Fac Fac Fac Upp Upp Res Res Acc Used RIF Installer . | . . . . . . . . . . . . . . . . . Robots Hacked . | . . . . . . . . . . . . . . . . . Non-combat . | . . . . . . . . . . . . . . . . . Combat . | . . . . . . . . . . . . . . . . . Robot Hacks Applied . | . . . . . . . . . . . . . . . . . Relay Couplers Released . | . . . . . . . . . . . . . . . . . Fabnet Peak Effective % . | . . . . . . . . . . . . . . . . . Robots Rewired . | . . . . . . . . . . . . . . . . . Allies Hacked 1 | . . . . . . . . . . 1 . . . . . . Hacks Repelled . | . . . . . . . . . . . . . . . . . Allies | -11 -10 -10 -10 -9 -8 -7 -6 -6 -6 -5 -4 -4 -4 -3 -2 -1 -------- Run | Yrd Mat Min Exi Min Mat Fac Fac Was Fac Fac Fac Upp Upp Res Res Acc Total Allies 20 | . . . . . . . . 18 . 2 . . . . . . Largest Group 18 | . . . . . . . . 18 13 2 . . . . . . Highest-Rated Group 656 | . . . . . . . . 656 531 28 . . . . . . Highest-Rated Ally 50 | . . . . . . . . 50 50 14 . . . . . . Total Orders . | . . . . . . . . . . . . . . . . . Ally Attacks 150 | . . . . . . . . 91 59 . . . . . . . Total Damage 7018 | . . . . . . . . 4466 2552 . . . . . . . Kills 29 | . . . . . . . . 11 18 . . . . . . . Allies Corrupted 1 | . . . . . . . . . 1 . . . . . . . Allies Melted . | . . . . . . . . . . . . . . . . . Intel | -11 -10 -10 -10 -9 -8 -7 -6 -6 -6 -5 -4 -4 -4 -3 -2 -1 ------- Run | Yrd Mat Min Exi Min Mat Fac Fac Was Fac Fac Fac Upp Upp Res Res Acc Active Infowar (turns) 7615 | 17 1292 985 . . 1506 239 176 155 548 615 1423 196 82 197 184 . Traps 4760 | . . . . . 962 239 176 155 548 608 1413 196 82 197 184 . Seismic 2294 | 17 1292 985 . . . . . . . . . . . . . . T.N.C. 4556 | . . . . . 1506 239 176 155 548 615 1317 . . . . . Cloaking 2 | . . . . . . . . . . . . . . 2 . . Jamming 2373 | . . . . . . . . . 364 615 906 166 82 57 183 . ECM 836 | . . . . . 110 211 176 155 184 . . . . . . . Robot Analysis Total 2 | . . . . . 1 . 1 . . . . . . . . . Derelict Logs Recovered 3 | . . . . 2 . . . . . . . . 1 . . . Drone Launches . | . . . . . . . . . . . . . . . . . Drone Recoveries . | . . . . . . . . . . . . . . . . . Exploration | -11 -10 -10 -10 -9 -8 -7 -6 -6 -6 -5 -4 -4 -4 -3 -2 -1 ------------- Run | Yrd Mat Min Exi Min Mat Fac Fac Was Fac Fac Fac Upp Upp Res Res Acc Turns Passed 11379 | 130 1292 1059 1579 1584 1516 239 176 155 548 615 1423 196 82 197 253 335 Spaces Moved 12347 | 89 760 641 984 918 789 540 286 299 1392 872 1982 683 283 535 541 753 Core 197 | 5 . . . . 2 . . . . . . . . . 60 130 Treads 3475 | . 480 641 984 918 452 . . . . . . . . . . . Legs 364 | 84 280 . . . . . . . . . . . . . . . Wheels 181 | . . . . . 181 . . . . . . . . . . . Hover 5 | . . . . . . . . . . . . . . . . 5 Flight 8125 | . . . . . 154 540 286 299 1392 872 1982 683 283 535 481 618 Fastest Speed 22 | 50 120 160 160 160 29 29 30 28 27 26 23 25 25 25 22 40 Average Speed 70 | 116 145 160 160 160 128 34 32 40 27 26 28 25 25 25 31 42 Slowest Speed 600 | 120 160 160 160 160 600 112 112 105 101 27 112 100 25 25 100 120 Overloaded Moves . | . . . . . . . . . . . . . . . . . Propulsion Burnouts . | . . . . . . . . . . . . . . . . . Robots Hopped 4 | . . . . . . . . . 1 . 3 . . . . . Potential Cave-ins 3 | . . . . . . . . 2 1 . . . . . . . Cave-ins Triggered . | . . . . . . . . . . . . . . . . . Exploration Rate (%) 40 | 5 83 83 94 99 44 13 5 91 20 10 20 63 25 7 12 14 Regions Visited 16 Branch Regions 5 Pre-discovered Areas 2 | . . . 1 1 . . . . . . . . . . . . Known Exits Taken 9 | . . 1 1 1 1 1 . . 1 1 . . . 1 1 . Unknown Exits Taken 5 | 1 1 . . . . . . . . . 1 1 1 . . . Scrap Searched 5 | . . . . 3 . . . . . . . 2 . . . . Spaces Dug 54 | . 14 . . . 9 . 2 . 12 10 6 . . 1 . . Terrain Destroyed 322 | . 22 23 . 45 68 . 2 2 19 84 52 3 . 2 . . Melee 40 | . . . . . 9 . 2 . 12 10 6 . . 1 . . Projectile 29 | . 17 . . 1 . . . 2 . . 5 3 . 1 . . AOE 253 | . 5 23 . 44 59 . . . 7 74 41 . . . . . Terrain Rammed . | . . . . . . . . . . . . . . . . . Walls Destroyed . | . . . . . . . . . . . . . . . . . Machines Disabled . | . . . . . . . . . . . . . . . . . Actions | -11 -10 -10 -10 -9 -8 -7 -6 -6 -6 -5 -4 -4 -4 -3 -2 -1 --------- Run | Yrd Mat Min Exi Min Mat Fac Fac Was Fac Fac Fac Upp Upp Res Res Acc Total 14468 | 108 854 662 989 999 1171 575 336 323 1518 1226 2770 691 286 573 618 769 Wait 1535 | 6 18 . . 40 223 8 16 17 87 326 710 . . 13 65 6 Move 12324 | 88 759 640 983 917 788 539 286 298 1389 871 1975 682 282 534 540 753 Hop 4 | . . . . . . . . . 1 . 3 . . . . . Pick Up 65 | 5 13 4 2 3 19 3 . 1 3 3 5 . . 3 1 . Fast Attach 55 | 7 2 . . 3 6 4 4 1 5 4 4 1 1 4 6 3 Attach 36 | . . . . 1 20 1 . . . 1 6 . . 3 1 3 Detach 6 | . . . . . . . 1 . . . 2 . . 1 1 1 Swap 93 | . 17 7 2 9 27 5 8 1 4 3 10 . . . . . Drop 63 | . 7 3 2 7 17 5 2 1 7 4 4 . . 1 1 2 Fire 174 | 2 36 6 . 15 56 7 15 4 5 3 16 4 . 4 . 1 Melee 93 | . . . . 2 14 3 4 . 17 11 22 4 3 10 3 . Ram . | . . . . . . . . . . . . . . . . . Kick 1 | . 1 . . . . . . . . . . . . . . . Crush 6 | . 1 2 . 2 1 . . . . . . . . . . . Escape Stasis 13 | . . . . . . . . . . . 13 . . . . . Rewire . | . . . . . . . . . . . . . . . . . Trap . | . . . . . . . . . . . . . . . . . Miscellaneous . | . . . . . . . . . . . . . . . . . Route ------- -11/Scrapyard -10/Materials (discovered 3 exits: [*Mat x2] / *Min) -10/Mines (discovered 4 exits: [*Mat x2] / *Exi / [*Sub]) -10/Exiles (discovered 2 exits: *Min x2) -9/Mines (discovered 2 exits: *Mat x2) -8/Materials -7/Factory (discovered 4 exits: *Fac x4) -6/Factory (discovered 4 exits: Fac x4) -6/Waste -6/Factory (discovered 5 exits: *Fac x4 / [*Low]) -5/Factory (discovered 4 exits: *Fac x4) -4/Factory (discovered 2 exits: [*Upp x2]) -4/Upper Caves -4/Upper Caves -3/Research -2/Research (discovered 3 exits: *Acc x3) -1/Access History --------- Turn | Location | Event 16 | -11/Scrapyard | Discovered new exit (range 15) 131 | -11/Scrapyard | Entered Materials 311 | -10/Materials | Build established: Mutant 745 | -10/Materials | Discovered new exit (range 11) 893 | -10/Materials | Central database locked down 1030 | -10/Materials | Discovered new exit (range 3) 1203 | -10/Materials | Discovered new exit (range 12) 1423 | -10/Materials | Entered Mines 1475 | -10/Mines | Met a Derelict bent on vengeance 1671 | -10/Mines | Received a Rocket Launcher from a helpful Derelict 1716 | -10/Mines | Discovered new exit (range 9) 1852 | -10/Mines | Met a Derelict shopkeep closing up shop 2089 | -10/Mines | Discovered new exit (range 9) 2203 | -10/Mines | Deemed a non-threat by the Exiles lab entrance 2204 | -10/Mines | Discovered new exit (range 5) 2254 | -10/Mines | Discovered new exit (range 9) 2409 | -10/Mines | Identified exit to Exiles 2482 | -10/Mines | Entered Exiles 2542 | -10/Exiles | Met 8R-AWN 2618 | -10/Exiles | Discovered new exit (range 15) 2650 | -10/Exiles | Identified exit to Mines 2727 | -10/Exiles | Met EX-HEX 2817 | -10/Exiles | Met EX-BIN 2850 | -10/Exiles | Aligned with FarCom system 2852 | -10/Exiles | Given EX-Vault access code 2938 | -10/Exiles | Opened EX-Vault 3095 | -10/Exiles | Warned to stay clear of 0b10 Research branches 3153 | -10/Exiles | Found Modified TNC 3231 | -10/Exiles | Met EX-DEC 3282 | -10/Exiles | Visited The Gauntlet 3549 | -10/Exiles | Discovered exit to Mines (range 14) 3685 | -10/Exiles | Learned location of Zion (-6) 4061 | -10/Exiles | Left Exiles lab with Modified TNC 4061 | -10/Exiles | Entered Mines 4082 | -9/Mines | Assembled infested the area 4264 | -9/Mines | Discovered new exit (range 7) 4280 | -9/Mines | Identified exit to Materials 4370 | -9/Mines | Learned location of Storage (-9) 4459 | -9/Mines | Discovered exit to Materials (range 5) 5374 | -9/Mines | Found a damaged Exp. Sensor Array with a note attached 5378 | -9/Mines | Found Prototype Device 5513 | -9/Mines | Core integrity fell below 50% 5645 | -9/Mines | Entered Materials 5645 | -8/Materials | Evolved 4 slots: Propulsion x1, Utility x3 5647 | -8/Materials | Identified Exp. Sensor Array 6390 | -8/Materials | Build established: Scavenger-Assassin 6688 | -8/Materials | Lost 6 parts (1p3n2w) 6728 | -8/Materials | System corruption reached 10% 7087 | -8/Materials | Core integrity fell below 50% 7138 | -8/Materials | Discovered new exit (range 12) 7151 | -8/Materials | Identified exit to Factory 7161 | -8/Materials | Entered Factory 7161 | -7/Factory | Evolved 2 slots: Propulsion x1, Utility x1 7174 | -7/Factory | Identified exit to Factory 7400 | -7/Factory | Entered another Factory area 7400 | -6/Factory | Evolved 2 slots: Power x1, Utility x1 7472 | -6/Factory | Identified exit to Factory 7576 | -6/Factory | Sucked down chute 7576 | -6/Factory | Entered Waste 7584 | -6/Waste | Warlord forces began an assault 7627 | -6/Waste | Spotted C-40 Crusher 7627 | -6/Waste | Spotted C-40 Crusher 7628 | -6/Waste | Spotted C-40 Crusher 7635 | -6/Waste | Allies destroyed C-40 Crusher 7638 | -6/Waste | Allies destroyed C-40 Crusher 7640 | -6/Waste | Allies destroyed C-40 Crusher 7649 | -6/Waste | Spotted C-40 Crusher 7661 | -6/Waste | Allies destroyed C-40 Crusher 7662 | -6/Waste | Spotted C-40 Crusher 7666 | -6/Waste | Allies destroyed C-40 Crusher 7683 | -6/Waste | Spotted C-40 Crusher 7692 | -6/Waste | Lost 5 allies 7699 | -6/Waste | Allies destroyed C-40 Crusher 7701 | -6/Waste | Discovered new exit (range 16) 7731 | -6/Waste | Entered Factory 7731 | -6/Factory | Accompanied by 13 allies 7764 | -6/Factory | Identified exit to DSF 7776 | -6/Factory | Discovered new exit (range 7) 7811 | -6/Factory | Identified exit to DSF 7874 | -6/Factory | Central database locked down 8210 | -6/Factory | Repaired Cesium-ion Thruster+ 8279 | -6/Factory | Entered another Factory area 8279 | -5/Factory | Evolved 2 slots: Propulsion x1, Utility x1 8451 | -5/Factory | Identified exit to Factory 8516 | -5/Factory | Build established: Hacker-Ninja 8603 | -5/Factory | Fabricated E-15 Imp? 8739 | -5/Factory | Repaired Cesium-ion Thruster+ 8894 | -5/Factory | Entered another Factory area 8894 | -4/Factory | Evolved 2 slots: Propulsion x1, Utility x1 10087 | -4/Factory | Discovered new exit (range 16) 10093 | -4/Factory | Central database locked down 10311 | -4/Factory | Discovered new exit (range 10) 10317 | -4/Factory | Entered Upper Caves 10334 | -4/Upper Caves | Lost 3 parts (1p1n1w) 10428 | -4/Upper Caves | Lost 3 parts (1n2u) 10435 | -4/Upper Caves | Attracted the attention of an 0b10 checkpoint 10510 | -4/Upper Caves | Discovered new exit (range 8) 10512 | -4/Upper Caves | Build established: Hacker-Sprinter 10513 | -4/Upper Caves | Entered another Upper Caves area 10516 | -4/Upper Caves | Learned Research terminal intel 10518 | -4/Upper Caves | Discovered new exit (range 14) 10595 | -4/Upper Caves | Entered Research 10595 | -3/Research | Evolved 2 slots: Propulsion x1, Utility x1 10596 | -3/Research | Loaded intel: 22 terminal locations 10625 | -3/Research | Discovered new exit (range 15) 10692 | -3/Research | Found Prototype Processor 10723 | -3/Research | Identified Exp. Signal Interpreter 10724 | -3/Research | Identified exit to Research 10740 | -3/Research | Lost 3 parts (1p1n1u) 10792 | -3/Research | Entered another Research area 10792 | -2/Research | Evolved 2 slots: Propulsion x1, Utility x1 10960 | -2/Research | Identified exit to Access 10977 | -2/Research | Released all parts (15) 11008 | -2/Research | Lost 5 parts (1p3n1u) 11045 | -2/Research | Entered Access 11045 | -1/Access | Evolved 2 slots: Utility x1, Weapon x1 11283 | -1/Access | Build established: Mutant 11331 | -1/Access | Core integrity fell below 50% 11346 | -1/Access | Lost 4 parts (1p1n1u1w) 11358 | -1/Access | Core integrity fell below 20% 11380 | -1/Access | Destroyed by Y-72 Warden with Railgun Last Messages --------------- 11315_ Q-thruster destroyed. 11315_ Imp. Core Shielding destroyed. [Achievement: Hunted] 11355_ Connecting with Terminal... >>Query(Combat Hover Systems) As future engagements in off-world locations could very well involve traversing more hostile terrain than seen here on [Tau Ceti IV], in order to bring heavier ground-based firepower to bear a new line of combat-oriented hover systems are under development. These include built-in armor and can support nearly as much mass as legs, though move somewhat more slowly than standard hover systems. Demolishers are the first to rely on this technology, but more classes have entered the testing phase as well. 11355_ ALERT: Suspicious activity at Terminal A015. Dispatching Investigation squad. 11380_ Penetrated by Slug. Map ----- +----------------------------------------------------+ | ????????????????????????????????????? | | ????????????????????????????????????? | | ????????????????????????????????????? | | ????????????????????????????????????? | | ????????????????????????????????????? | | ????????????????????????????????????? | | ????????????????????????????????????? | | ????????????????????????????????????? | | ????????????????????????????????????? | | ????????????????????????????????????? | | ????????????????????????????????????? | | ????????????????????????????????????? | | ????????????????????????????????????? | | ????????????????????????????????????? | | ????????????????????????#+#?????????? | | ???????????????????????? ?????????? | | ???????????????????????? ?????????? | | ???????????????????????? Y ?????????? | | ???????????????????????? ?????????? | | ???????????????????????? ?????????? | | ????????????????????????# #?????????? | | ????????????????????????# #?????????? | | ????????????????????????# #?????????? | | ????????????????????????# #?????????? | | ????????????????????????# #?????????? | | ????????????????????????#@#?????????? | | ????????????????????????# #?????????? | | ????????????????????????# ########??? | | ????????????????????????# # #??? | | ????????????????????????#s# #??? | | ????????????????????????#s# #??? | | ?????????################ # #??? | | ??????? ss# ???? | | ??????? # ?????? | | ??????? s ##/####???? | | ??????? #???? | | ????????#####+##############p##+#???? | | ???????????????????????????# #??????? | | ?????#######???????????????#p#??????? | | ?????# ! #???????????????#s#??????? | | ?????# #???????????????#p#??????? | | ?????# #???????????????#p#???? # | | ?????# #???????????????# #??!! # | | ?????# ################# # ! # | | ?????# / + # | | ?????# ################# # # | | ????###/####??#######??????# #?? # | | ????# ##### #??????# #???? # | | ##### "" ######## #??????? | | "T " #??????? | +----------------------------------------------------+ Best States ------------- Heat Dissipation 68 Energy Generation 43 Energy Capacity 280 Matter Stores 300 Matter Capacity 300 Sight Range 16 Terrain Scan Density 10 ECM Strength 2 Jamming Range 12 Armor Coverage 150 Resistance: KI 20 Core Shielding 30 Propulsion Shielding 66 Utility Shielding 33 Evasion (%) 77 Recoil Reduction 3 Offensive Hacking 30 Defensive Hacking 12 Item Schematics ----------------- None Robot Schematics ------------------ None Fabricated ------------ E-15 Imp | x2 | -5/Factory | Preloaded Repaired ---------- Cesium-ion Thruster | 48% | -6/Factory Cesium-ion Thruster | 48% | -5/Factory Studied --------- Cesium-ion Thruster | -7/Factory | Hacked Lgt. Nuclear Core | -7/Factory | Hacked Hvy. Assault Rifle | -7/Factory | Hacked Imp. Fusion Compressor | -4/Factory | Hacked Impulse Thruster | -4/Factory | Hacked Rocket Launcher | -4/Factory | Hacked Alien Tech Used ----------------- None Achievements -------------- Can't Catch Me Dangerous Findings Denied? Dodgeball, But With Guns Hunted I Laugh At Your Crits Insider Info My Command Is Your Wish Quick And Dirty Respectable Loadout Throw Away The Key Challenges ------------ None Game ------ Seed ScatterReactiveExoskeleton Manual? 0 Play Time 04:01:40 Cumulative 33.1 hours Start 2025.11.25 @ 20:10:11 End 2025.11.26 @ 22:25:46 Sessions 5 Manual Loads 0 Difficulty Rogue Special Mode None Game No. 31 Rogue 31 Adventurer 0 Explorer 0 Win Type - Total 0 Types 0/0/0/0/0/0/0/0/0/0 Lore% 17 Gallery% 22 Achievement% 20 Wizard Run 0 Options --------- Layout 1 ASCII 0 Keyboard 0 Movement Arrows Keybinds 0 Fullscreen 2 Font 48/Smallcaps Map View 50x35 Zoom Use 0% Tactical HUD 1 Map Filters NONE Filters NONE Steam 1 RUN: d873e470-8c84-45d1-9457-869c220fc30a